bitfinex/quotes_SOLUSD_20241231
["timestamp","ask_amount","ask_price","bid_price","bid_amount"]
[1735637149215,7.8611,193.35,193.27,24.153354]
[1735637149921,7.8611,193.35,193.27,34.46228843]
[1735637151319,7.8611,193.35,193.27,24.153354]
[1735637152514,7.8611,193.35,193.27,0.37647]
[1735637154116,7.8611,193.35,193.29,0.37647]
[1735637157895,7.8611,193.35,193.31,0.37647]
[1735637158918,7.8611,193.35,193.33,0.37647]
[1735637160201,7.8611,193.35,193.29,137.6]
[1735637161325,7.8611,193.35,193.3,0.37647]
[1735637161523,7.8611,193.35,193.25,10.30893443]
[1735637162125,7.8611,193.35,193.25,34.46228843]
[1735637162326,7.8611,193.35,193.25,34.21130843]
[1735637162511,7.8611,193.35,193.25,23.902374]
[1735637162824,7.8611,193.35,193.24,157.6]
[1735637163122,7.8611,193.35,193.24,20.0]
[1735637163123,1.6564,193.34,193.24,20.0]
[1735637163502,1.6564,193.34,193.21,147.90893443]
[1735637163928,1.6564,193.34,193.24,24.153354]
[1735637164111,1.6564,193.34,193.24,0.25098]
[1735637164722,1.6564,193.34,193.25,0.12549]
[1735637166124,1.6564,193.34,193.27,0.12549]
[1735637166920,1.6564,193.34,193.29,23.902374]
[1735637167136,1.6564,193.34,193.31,0.12549]
[1735637187753,1.6564,193.34,193.23,137.6]
[1735637188345,1.6564,193.34,193.21,155.97279023]
[1735637188551,1.6564,193.34,193.21,145.6638558]
[1735637188552,2.62631766,193.34,193.21,145.6638558]
[1735637188756,2.62631766,193.34,193.21,137.6]
[1735637188946,2.62631766,193.34,193.22,24.153354]
[1735637190329,2.62631766,193.34,193.22,24.027864]
[1735637190655,2.62631766,193.34,193.23,0.12549]
[1735637191861,1.6564,193.34,193.25,0.12549]
[1735637192862,1.6564,193.34,193.27,0.12549]
[1735637193163,1.6564,193.34,193.29,0.12549]
[1735637199154,1.6564,193.34,193.31,0.12549]
[1735637200159,1.5564,193.39,193.33,0.12549]
[1735637204061,1.5564,193.39,193.31,137.6]
[1735637204647,1.5564,193.39,193.32,0.12549]
[1735637205260,1.5564,193.39,193.32,0.37647]
[1735637205641,0.96961771,193.38,193.25,10.30893443]
[1735637205861,1.6041,193.37,193.24,10.30893443]
[1735637206065,1.6041,193.37,193.28,20.37647]
[1735637206748,6.1024,193.36,193.28,0.37647]
[1735637206946,2.57388375,193.35,193.21,147.90893443]
[1735637207635,20.0,193.33,193.22,24.153354]
[1735637208356,7.7065,193.32,193.22,0.37647]
[1735637208555,1.6041,193.28,193.16,158.6061558]
[1735637208758,1.6041,193.28,193.17,10.30893443]
[1735637209340,1.6041,193.28,193.18,34.46228843]
[1735637209553,1.6041,193.28,193.2,24.153354]
[1735637209762,1.6041,193.28,193.2,34.46228843]
[1735637210260,1.6041,193.28,193.22,24.153354]
[1735637211548,1.6041,193.28,193.22,10.68540443]
[1735637211752,1.6041,193.28,193.24,24.153354]
[1735637214939,1.6041,193.28,193.24,10.68540443]
[1735637215145,1.6041,193.28,193.24,0.37647]
[1735637218964,1.6041,193.35,193.27,50.03228843]
[1735637219163,1.6041,193.35,193.31,10.68540443]
[1735637219389,1.6041,193.35,193.33,0.37647]
[1735637222302,1.5542,193.4,193.33,0.37647]
[1735637222509,1.5542,193.4,193.35,0.37647]
[1735637223995,1.5542,193.4,193.37,0.37647]
[1735637226885,1.5542,193.4,193.31,10.30893443]
[1735637227496,1.5542,193.4,193.32,10.30893443]
[1735637227692,1.5542,193.4,193.33,24.153354]
[1735637228028,1.5542,193.4,193.3,147.90893443]
[1735637228236,20.0,193.38,193.31,23.902374]
[1735637228505,0.9695854,193.37,193.26,10.30893443]
[1735637228705,1.6475,193.36,193.25,137.6]
[1735637228908,20.0,193.32,193.23,10.30893443]
[1735637229491,20.0,193.32,193.25,24.153354]
[1735637229691,20.0,193.32,193.24,10.30893443]
[1735637230011,20.0,193.32,193.25,0.25098]
[1735637230328,20.0,193.32,193.24,16.11772745]
[1735637230721,20.0,193.32,193.25,24.153354]
[1735637231413,20.0,193.32,193.23,16.11772745]
[1735637231619,20.0,193.32,193.22,16.11772745]
[1735637232415,20.0,193.32,193.23,24.153354]
[1735637234505,20.0,193.32,193.23,0.37647]
[1735637235518,20.0,193.32,193.25,16.49419745]
[1735637235728,20.0,193.32,193.25,24.153354]
[1735637236420,20.0,193.32,193.25,0.37647]
[1735637237823,1.6475,193.36,193.26,20.0]
[1735637238028,1.5073,193.41,193.36,24.153354]
[1735637238230,1.5073,193.41,193.39,24.153354]
[1735637238901,1.5073,193.41,193.39,0.37647]
[1735637242323,6.6105,193.44,193.39,16.49419745]
[1735637242534,1.5073,193.46,193.41,24.153354]
[1735637244328,1.5073,193.46,193.41,16.49419745]
[1735637244502,1.5073,193.46,193.41,0.37647]
[1735637246930,21.5073,193.46,193.37,16.11772745]
[1735637247112,21.5073,193.46,193.36,16.11772745]
[1735637248031,21.5073,193.46,193.37,0.25098]
[1735637248331,21.5073,193.46,193.3,31.68772745]
[1735637248332,0.96933204,193.45,193.35,16.11772745]
[1735637248529,0.96933204,193.45,193.33,16.11772745]
[1735637248713,0.96933204,193.45,193.35,16.11772745]
[1735637248921,0.96933204,193.45,193.36,0.37647]
[1735637249745,21.5073,193.46,193.36,0.37647]
[1735637249917,0.9693182,193.45,193.36,0.37647]
[1735637251035,0.9693182,193.45,193.34,16.11772745]
[1735637251329,0.9693182,193.45,193.34,0.12549]
[1735637251533,20.0,193.41,193.34,0.12549]
[1735637251916,1.6019,193.4,193.32,16.24321745]
[1735637252326,1.6019,193.4,193.31,16.11772745]
[1735637252534,0.96958581,193.39,193.3,16.11772745]
[1735637253235,0.96958581,193.39,193.32,0.25098]
[1735637253918,1.6019,193.4,193.34,16.36870745]
[1735637254147,1.6019,193.4,193.35,16.11772745]
[1735637254446,1.6019,193.4,193.37,0.12549]
[1735637254634,1.6019,193.4,193.37,16.36870745]
[1735637255520,1.6019,193.4,193.37,0.25098]
[1735637255926,1.6019,193.4,193.38,16.11772745]
[1735637256123,7.8904,193.44,193.39,16.36870745]
[1735637256331,7.8904,193.44,193.41,0.25098]
[1735637256836,7.8904,193.44,193.4,0.37647]
[1735637257919,7.8904,193.44,193.4,16.49419745]
[1735637258240,7.8904,193.44,193.4,0.37647]
[1735637259539,7.8904,193.44,193.4,16.49419745]
[1735637259741,1.6019,193.44,193.4,16.49419745]
[1735637260041,1.6019,193.44,193.4,0.37647]
[1735637260241,1.6019,193.44,193.38,16.11772745]
[1735637261322,1.6019,193.44,193.37,16.11772745]
[1735637261947,1.6019,193.44,193.38,0.37647]
[1735637262756,1.6019,193.44,193.4,0.12549]
[1735637264046,1.6019,193.44,193.39,0.12549]
[1735637265845,1.6019,193.44,193.37,16.11772745]
[1735637266034,1.6019,193.44,193.36,16.11772745]
[1735637266035,2.57121757,193.44,193.36,16.11772745]
[1735637267050,2.57121757,193.44,193.36,0.12549]
[1735637267351,6.4957,193.43,193.36,0.12549]
[1735637267521,0.96949438,193.42,193.36,0.12549]
[1735637267727,6.4957,193.43,193.36,0.12549]
[1735637267926,0.96948997,193.42,193.36,0.12549]
[1735637268949,6.4957,193.43,193.36,0.12549]
[1735637270555,0.96947454,193.42,193.36,0.12549]
[1735637270728,6.4957,193.43,193.36,0.12549]
[1735637271650,6.4957,193.43,193.38,0.12549]
[1735637275364,6.4957,193.43,193.38,16.49419745]
[1735637275569,6.4957,193.43,193.4,0.12549]
[1735637277947,6.4957,193.43,193.38,16.11772745]
[1735637278163,6.4957,193.43,193.39,0.25098]
[1735637280271,6.4957,193.43,193.39,0.37647]
[1735637280640,1.6019,193.44,193.42,0.25098]
[1735637280961,6.2394,193.47,193.43,10.55095467]
[1735637281152,1.5504,193.49,193.43,10.55095467]
[1735637281674,1.5504,193.49,193.44,0.12549]
[1735637281842,1.5504,193.49,193.45,10.55095467]
[1735637282440,6.2394,193.52,193.45,10.55095467]
[1735637282877,6.2394,193.52,193.46,0.25098]
[1735637283076,6.2394,193.52,193.47,0.12549]
[1735637284257,6.2394,193.52,193.45,0.37647]
[1735637284576,1.5504,193.53,193.47,0.37647]
[1735637286787,1.5504,193.53,193.43,16.08380237]
[1735637286946,1.5504,193.53,193.42,16.08380237]
[1735637287287,6.2394,193.51,193.41,16.08380237]
[1735637287586,0.9691319,193.5,193.4,153.68380237]
[1735637287947,0.9691319,193.5,193.41,0.25098]
[1735637288578,0.9691319,193.5,193.41,0.12549]
[1735637288759,0.9691319,193.5,193.41,0.37647]
[1735637289084,6.2394,193.51,193.41,16.46027237]
[1735637289577,6.2394,193.51,193.42,16.08380237]
[1735637289745,6.2394,193.51,193.43,0.37647]
[1735637293380,0.96908757,193.5,193.4,36.08380237]
[1735637293783,0.96908757,193.5,193.41,0.37647]
[1735637298700,20.0,193.48,193.38,16.08380237]
[1735637298883,0.96928204,193.47,193.36,16.08380237]
[1735637299387,0.96928204,193.47,193.37,0.37647]
[1735637304308,0.96928204,193.47,193.37,30.67846289]
[1735637307212,1.5559,193.49,193.41,0.37647]
[1735637307416,1.5559,193.49,193.41,10.67846289]
[1735637307621,1.5559,193.49,193.43,10.67846289]
[1735637307924,1.5559,193.49,193.45,10.67846289]
[1735637308087,1.5559,193.49,193.45,0.37647]
[1735637313083,1.5559,193.49,193.39,137.6]
[1735637313291,0.96896672,193.48,193.39,10.30199289]
[1735637313490,0.96920452,193.48,193.4,0.37647]
[1735637313704,1.5559,193.49,193.4,10.30199289]
[1735637314005,1.5559,193.49,193.41,0.37647]
[1735637316002,0.96917946,193.48,193.41,0.37647]
[1735637317203,1.5559,193.49,193.41,0.37647]
[1735637317801,0.96918331,193.48,193.41,0.37647]
[1735637319206,2.52509041,193.49,193.41,0.37647]
[1735637319410,2.52509041,193.49,193.39,30.30199289]
[1735637319810,1.5559,193.49,193.4,0.37647]
[1735637320223,1.5559,193.49,193.41,10.30199289]
[1735637320513,1.5559,193.49,193.42,10.67846289]
[1735637320697,1.5559,193.49,193.44,10.67846289]
[1735637323195,1.5559,193.49,193.44,0.37647]
[1735637325213,1.5559,193.49,193.44,10.67846289]
[1735637340933,1.5559,193.49,193.44,0.37647]
[1735637344134,1.5559,193.49,193.44,10.67846289]
[1735637344731,1.5559,193.49,193.44,0.37647]
[1735637344936,1.5559,193.49,193.41,23.22789289]
[1735637345425,20.0,193.54,193.44,10.67846289]
[1735637345634,20.0,193.54,193.46,0.37647]
[1735637345936,1.6124,193.56,193.46,0.37647]
[1735637346134,0.96887083,193.55,193.46,0.37647]
[1735637349424,0.96887083,193.55,193.46,10.67846289]
[1735637349627,0.96887083,193.55,193.46,0.37647]
[1735637352126,0.96887083,193.55,193.42,10.30199289]
[1735637352127,1.6006,193.54,193.42,10.30199289]
[1735637352327,6.1048,193.52,193.43,10.30199289]
[1735637352528,6.1048,193.52,193.44,0.37647]
[1735637353044,2.56956921,193.51,193.37,12.9282]
[1735637353226,2.56956921,193.51,193.39,10.30199289]
[1735637353429,20.0,193.49,193.37,12.9282]
[1735637353640,20.0,193.49,193.4,10.30199289]
[1735637353839,1.6006,193.51,193.41,10.30199289]
[1735637354141,0.96911203,193.5,193.42,0.37647]
[1735637356528,0.96911203,193.5,193.37,12.9282]
[1735637356736,7.7044,193.49,193.39,10.30199289]
[1735637357046,7.7044,193.49,193.4,0.37647]
[1735637357339,7.7044,193.49,193.4,0.25098]
[1735637357730,7.7044,193.49,193.4,0.37647]
[1735637357934,7.7044,193.49,193.41,0.12549]
[1735637363467,7.7044,193.49,193.42,0.25098]
[1735637366973,7.7044,193.49,193.4,10.30199289]
[1735637368574,7.7044,193.49,193.41,10.30199289]
[1735637369476,7.7044,193.49,193.4,10.30199289]
[1735637373674,0.96915807,193.48,193.38,10.30199289]
[1735637373880,0.96915807,193.48,193.37,10.30199289]
[1735637374075,0.96915807,193.48,193.38,0.37647]
[1735637374276,0.96915807,193.48,193.39,20.0]
[1735637375380,0.96915807,193.48,193.39,30.30199289]
[1735637375750,0.96915807,193.48,193.39,10.30199289]
[1735637376277,1.6226,193.46,193.34,33.653685]
[1735637376466,0.96944127,193.45,193.35,10.30199289]
[1735637376771,0.96944127,193.45,193.34,12.9303]
[1735637376772,23.776884,193.39,193.32,14.7119558]
[1735637376975,1.6226,193.33,193.32,13.0453558]
[1735637377183,9.24071658,193.33,193.32,6.6481]
[1735637377487,8.2707,193.33,193.29,6.3972558]
[1735637378257,8.2707,193.33,193.28,26.42970449]
[1735637378258,8.2707,193.33,193.28,10.30199289]
[1735637378477,8.2707,193.33,193.29,10.67846289]
[1735637378659,1.6226,193.36,193.29,0.37647]
[1735637378860,1.6226,193.36,193.3,10.30199289]
[1735637380876,1.6226,193.36,193.32,10.30199289]
[1735637382258,1.6226,193.36,193.33,0.37647]
[1735637382458,1.6226,193.36,193.33,10.67846289]
[1735637382654,1.6226,193.36,193.32,10.30199289]
[1735637382861,1.6226,193.36,193.3,10.30199289]
[1735637383059,1.6226,193.36,193.28,150.5344]
[1735637383277,1.6226,193.36,193.29,10.30199289]
[1735637383484,1.6226,193.36,193.3,10.30199289]
[1735637384586,1.6226,193.36,193.29,10.67846289]
[1735637386083,1.6226,193.36,193.3,10.30199289]
[1735637386489,1.6226,193.36,193.29,0.37647]
[1735637386671,0.96964097,193.35,193.22,137.6]
[1735637386882,20.96964097,193.35,193.22,137.6]
[1735637387079,20.96964097,193.35,193.23,10.30199289]
[1735637387272,23.776884,193.34,193.21,12.9387]
[1735637387474,0.97004793,193.33,193.23,10.67846289]
[1735637387681,0.97004793,193.33,193.24,10.30199289]
[1735637387872,24.74683399,193.34,193.24,30.30199289]
[1735637388084,24.74683399,193.34,193.24,20.0]
[1735637388285,24.74683399,193.34,193.27,20.0]
[1735637388894,0.96998016,193.33,193.26,20.0]
[1735637389485,0.96998016,193.33,193.22,10.30199289]
[1735637389486,1.5454,193.31,193.2,10.30199289]
[1735637389688,0.97016787,193.3,193.23,20.0]
[1735637390366,2.51555371,193.31,193.23,20.0]
[1735637390569,2.51555371,193.31,193.21,0.37647]
[1735637392001,1.5454,193.31,193.23,0.12549]
[1735637393267,1.5454,193.31,193.23,0.37647]
[1735637393468,1.5454,193.31,193.23,10.67846289]
[1735637393671,1.5454,193.31,193.25,10.67846289]
[1735637393904,1.5454,193.31,193.27,0.37647]
[1735637394995,1.5454,193.35,193.3,20.37647]
[1735637395692,6.2178,193.37,193.33,20.0]
[1735637395875,6.2178,193.37,193.34,0.37647]
[1735637396074,6.2178,193.37,193.33,20.0]
[1735637396903,6.2178,193.37,193.32,20.12549]
[1735637397069,6.2178,193.37,193.29,20.0]
[1735637397269,1.5454,193.4,193.35,10.30199289]
[1735637397498,1.5454,193.4,193.36,0.12549]
[1735637399697,1.5454,193.4,193.36,0.37647]
[1735637399894,1.5454,193.4,193.36,10.67846289]
[1735637400092,1.5454,193.4,193.37,10.30199289]
[1735637400304,1.5454,193.4,193.36,10.67846289]
[1735637401512,6.2178,193.42,193.38,0.12549]
[1735637401820,6.2178,193.42,193.4,20.0]
[1735637402197,6.2178,193.42,193.36,20.0]
[1735637402415,6.2178,193.42,193.34,10.30199289]
[1735637402784,6.2178,193.42,193.36,0.12549]
[1735637403599,6.2178,193.42,193.36,24.153354]
[1735637403778,6.2178,193.42,193.41,0.12549]
[1735637404411,6.2178,193.42,193.35,10.30199289]
[1735637404905,6.2178,193.42,193.3,191.74097156]
[1735637404906,6.2178,193.42,193.37,0.37647]
[1735637405408,6.2178,193.42,193.37,0.25098]
[1735637405603,6.2178,193.42,193.38,0.25098]
[1735637406204,6.2178,193.42,193.41,0.12549]
[1735637407213,6.2178,193.42,193.39,0.12549]
[1735637409525,6.2178,193.42,193.3,150.5326]
[1735637409810,6.2178,193.42,193.28,10.30199289]
[1735637409811,2.53803373,193.41,193.28,10.30199289]
[1735637410111,2.53803373,193.41,193.29,24.153354]
[1735637410330,2.53803373,193.41,193.29,10.30199289]
[1735637410613,2.53803373,193.41,193.3,10.30199289]
[1735637410911,2.53803373,193.41,193.34,20.0]
[1735637412913,2.53803373,193.41,193.35,0.37647]
[1735637413116,1.5686,193.41,193.35,0.37647]
[1735637415299,1.5686,193.41,193.35,20.37647]
[1735637415504,1.5686,193.41,193.35,30.67846289]
[1735637416218,1.5686,193.41,193.35,20.37647]
[1735637416805,1.5686,193.41,193.31,10.30199289]
[1735637417421,1.5686,193.41,193.35,0.12549]
[1735637417622,2.53819216,193.41,193.35,0.12549]
[1735637418517,2.53819216,193.41,193.33,20.0]
[1735637418716,23.776884,193.4,193.2,180.31987156]
[1735637418913,6.2419,193.38,193.26,10.30199289]
[1735637419222,0.96985339,193.37,193.26,10.30199289]
[1735637419715,0.96985339,193.37,193.29,20.0]
[1735637420101,6.2419,193.38,193.3,0.37647]
[1735637423403,6.2419,193.38,193.3,20.37647]
[1735637423722,0.96972973,193.37,193.25,160.83809289]
[1735637424121,0.96972973,193.37,193.28,20.0]
[1735637424491,1.6189,193.36,193.28,20.0]
[1735637424725,0.96998358,193.35,193.27,20.0]
[1735637425503,1.6189,193.36,193.28,0.37647]
[1735637427027,0.96982905,193.35,193.28,0.37647]
[1735637427503,0.96982905,193.35,193.25,20.0]
[1735637427504,0.96982905,193.35,193.22,150.5383]
[1735637427704,0.96982905,193.35,193.24,10.30199289]
[1735637427900,20.96982905,193.35,193.24,0.37647]
[1735637428116,6.4721,193.34,193.24,0.37647]
[1735637428316,0.96998915,193.33,193.24,0.37647]
[1735637432005,1.6482,193.32,193.23,20.0]
[1735637432212,20.97008817,193.31,193.19,10.30199289]
[1735637432822,20.97008817,193.31,193.2,30.30199289]
[1735637433026,20.97008817,193.31,193.21,0.12549]
[1735637433230,20.97008817,193.31,193.21,10.42748289]
[1735637433701,20.97008817,193.31,193.22,0.25098]
[1735637433899,6.6328,193.3,193.22,0.25098]
[1735637434305,0.97011401,193.29,193.22,0.25098]
[1735637434922,6.6328,193.3,193.22,0.25098]
[1735637437833,1.6482,193.29,193.22,0.25098]
[1735637438028,1.6482,193.29,193.21,0.12549]
[1735637438029,20.0,193.24,193.07,139.2281]
[1735637438216,20.0,193.2,193.1,10.30199289]
[1735637438813,20.0,193.2,193.12,24.153354]
[1735637439221,20.0,193.2,193.11,10.30199289]
[1735637439830,20.0,193.2,193.1,20.0]
[1735637440133,20.0,193.2,193.1,30.30199289]
[1735637441521,2.61877027,193.22,193.11,24.153354]
[1735637441720,2.61877027,193.22,193.11,34.45534689]
[1735637443929,2.61877027,193.22,193.11,24.153354]
[1735637444146,2.61877027,193.22,193.13,0.37647]
[1735637445354,1.6482,193.22,193.13,10.67846289]
[1735637447940,1.6482,193.22,193.17,0.12549]
[1735637448739,1.6482,193.22,193.18,0.37647]
[1735637448922,1.6482,193.22,193.2,20.0]
[1735637449439,1.6482,193.22,193.2,0.37647]
[1735637455250,1.6482,193.22,193.19,23.776884]
[1735637455251,1.6482,193.22,193.19,20.0]
[1735637455944,1.6482,193.22,193.2,0.25098]
[1735637456550,6.6328,193.23,193.2,0.12549]
[1735637456844,1.6,193.27,193.22,24.153354]
[1735637457644,1.6,193.27,193.22,20.37647]
[1735637457838,1.6,193.27,193.22,0.12549]
[1735637458343,1.6,193.27,193.23,20.25098]
[1735637459534,1.6,193.27,193.24,0.12549]
[1735637460747,1.6,193.27,193.2,10.30199289]
[1735637460937,1.6,193.27,193.17,10.30199289]
[1735637461122,2.57025431,193.27,193.17,10.30199289]
[1735637461730,1.6,193.27,193.18,24.153354]
[1735637463151,2.57024417,193.27,193.15,10.30199289]
[1735637463336,2.57024417,193.27,193.18,20.0]
[1735637464747,1.6,193.27,193.19,0.37647]
[1735637465053,2.57024259,193.27,193.19,0.25098]
[1735637465653,1.6,193.27,193.19,0.25098]
[1735637468432,1.6,193.27,193.21,0.25098]
[1735637469241,1.6,193.27,193.19,0.37647]
[1735637469757,0.97024839,193.26,193.17,20.0]
[1735637471033,1.6,193.27,193.18,0.37647]
[1735637471233,2.57028724,193.27,193.18,0.37647]
[1735637471953,2.57028724,193.27,193.18,34.45534689]
[1735637472168,1.6,193.27,193.21,0.37647]
[1735637472667,1.6,193.27,193.22,23.776884]
[1735637472953,6.5946,193.28,193.25,0.37647]
[1735637473161,1.5871,193.31,193.25,10.67846289]
[1735637473839,1.5871,193.31,193.27,0.37647]
[1735637475656,1.5871,193.31,193.24,10.30199289]
[1735637475857,1.5871,193.31,193.23,10.30199289]
[1735637476058,1.5871,193.31,193.24,24.153354]
[1735637476434,1.5871,193.31,193.24,0.37647]
[1735637476636,1.5871,193.31,193.24,0.25098]
[1735637476835,1.5871,193.31,193.25,0.12549]
[1735637479158,1.5871,193.31,193.24,0.25098]
[1735637479366,1.5871,193.31,193.22,30.30199289]
[1735637479575,20.97006509,193.3,193.2,10.30199289]
[1735637479744,20.0,193.3,193.21,10.30199289]
[1735637480369,20.0,193.3,193.22,0.37647]
[1735637482668,0.97011161,193.29,193.18,23.24299289]
[1735637482968,0.97011161,193.29,193.19,24.153354]
[1735637484066,6.112,193.28,193.19,24.153354]
[1735637484268,0.97024587,193.27,193.19,24.153354]
[1735637484560,1.5235,193.26,193.19,0.37647]
[1735637484765,1.5235,193.26,193.16,10.30199289]
[1735637484942,1.5235,193.26,193.18,20.37647]
[1735637485444,1.5235,193.26,193.21,0.12549]
[1735637486168,1.5235,193.26,193.24,0.25098]
[1735637486364,6.112,193.28,193.24,0.25098]
[1735637486867,6.112,193.28,193.25,0.12549]
[1735637487768,1.5235,193.3,193.27,0.12549]
[1735637488752,6.112,193.33,193.27,0.12549]
[1735637491475,6.112,193.33,193.29,0.12549]
[1735637491973,1.5235,193.36,193.33,0.12549]
[1735637492548,6.3253,193.38,193.33,0.12549]
[1735637496963,6.3253,193.38,193.35,0.12549]
[1735637498552,1.505,193.41,193.36,24.027864]
[1735637498759,1.505,193.46,193.39,0.12549]
[1735637499895,20.0,193.45,193.39,0.12549]
[1735637501177,1.505,193.46,193.39,0.12549]
[1735637502566,20.96919001,193.45,193.35,16.1154707]
[1735637503284,20.96919001,193.45,193.36,24.153354]
[1735637503472,20.0,193.45,193.36,24.153354]
[1735637503657,20.0,193.45,193.36,16.4919407]
[1735637504579,1.505,193.46,193.36,16.4919407]
[1735637505481,20.0,193.45,193.36,16.4919407]
[1735637505657,20.0,193.45,193.36,24.153354]
[1735637506796,20.0,193.45,193.36,0.37647]
[1735637506971,20.0,193.45,193.38,0.37647]
[1735637507292,6.3253,193.48,193.4,24.153354]
[1735637507463,6.3253,193.48,193.4,16.4919407]
[1735637508761,1.5875,193.5,193.4,16.4919407]
[1735637508977,1.5875,193.5,193.42,24.153354]
[1735637509500,21.5875,193.5,193.42,24.153354]
[1735637510791,20.0,193.5,193.42,34.44945907]
[1735637510997,6.0756,193.53,193.44,24.153354]
[1735637513180,0.9689289,193.52,193.44,0.37647]
[1735637514177,6.0756,193.53,193.44,0.37647]
[1735637515418,1.5875,193.55,193.46,0.37647]
[1735637516124,20.0,193.54,193.46,0.37647]
[1735637521090,6.0756,193.57,193.48,0.37647]
[1735637521519,0.96874365,193.59,193.49,23.776884]
[1735637521520,20.96874365,193.59,193.49,23.776884]
[1735637521716,0.96874365,193.59,193.5,0.37647]
[1735637523306,20.96874365,193.59,193.5,0.37647]
[1735637524717,1.651,193.65,193.57,0.37647]
[1735637525099,20.0,193.64,193.57,0.37647]
[1735637525296,1.651,193.65,193.57,10.67257507]
[1735637525508,6.3018,193.67,193.57,10.67257507]
[1735637525701,1.651,193.69,193.59,0.37647]
[1735637525911,0.96826682,193.68,193.61,0.12549]
[1735637526313,0.96819347,193.71,193.61,10.67257507]
[1735637526517,20.0,193.69,193.59,10.29610507]
[1735637526696,0.96822516,193.68,193.59,10.29610507]
[1735637527097,0.96822516,193.68,193.6,0.37647]
[1735637527315,0.96822516,193.68,193.57,10.29610507]
[1735637527702,0.96822516,193.68,193.58,24.153354]
[1735637528102,0.96822516,193.68,193.58,10.67257507]
[1735637528304,0.96822516,193.68,193.58,16.4371332]
[1735637529109,0.96822516,193.68,193.6,0.37647]
[1735637530295,20.0,193.69,193.6,0.37647]
[1735637530808,0.96815107,193.68,193.6,0.37647]
[1735637531819,0.96815107,193.68,193.56,39.8375472]
[1735637532002,0.96815107,193.68,193.55,22.6790632]
[1735637532203,20.0,193.64,193.53,1.6309]
[1735637532415,0.96851906,193.63,193.53,1.6309]
[1735637533018,0.96851906,193.63,193.54,0.37647]
[1735637533207,0.96851906,193.63,193.53,1.6309]
[1735637534006,0.96851906,193.63,193.54,0.37647]
[1735637537433,0.96851906,193.63,193.48,17.625563]
[1735637537607,0.96851906,193.63,193.48,17.6255632]
[1735637537916,0.96851906,193.63,193.49,40.2140172]
[1735637538117,0.96851906,193.63,193.49,24.153354]
[1735637538423,20.0,193.59,193.49,0.37647]
[1735637538610,0.96877541,193.58,193.49,0.37647]
[1735637538811,20.0,193.59,193.49,16.4371332]
[1735637539029,0.96872318,193.58,193.49,0.37647]
[1735637539927,0.96872318,193.58,193.49,0.12549]
[1735637540102,0.96872318,193.58,193.43,17.6255632]
[1735637540302,0.96872318,193.58,193.43,1.5649]
[1735637540303,25.438484,193.57,193.43,1.5649]
[1735637540503,20.0,193.53,193.43,1.5649]
[1735637540732,0.96907285,193.52,193.44,0.37647]
[1735637542027,0.96907285,193.52,193.44,0.12549]
[1735637544430,0.96907285,193.52,193.41,24.153354]
[1735637544733,0.96907285,193.52,193.38,1.5649]
[1735637545033,20.0,193.48,193.38,1.5649]
[1735637545235,0.96935435,193.47,193.38,1.5649]
[1735637545728,0.96935435,193.47,193.39,0.12549]
[1735637548839,0.96935435,193.47,193.36,24.153354]
[1735637550742,0.96935435,193.47,193.36,40.2140172]
[1735637552040,0.96928204,193.49,193.4,0.12549]
[1735637552219,0.9691754,193.5,193.4,40.2140172]
[1735637552420,20.0,193.51,193.4,40.2140172]
[1735637553141,0.96907623,193.5,193.4,40.2140172]
[1735637553340,0.96909112,193.52,193.4,40.2140172]
[1735637554347,20.96909112,193.52,193.4,40.2140172]
[1735637556844,20.96909112,193.52,193.4,24.153354]
[1735637557047,23.902374,193.51,193.35,17.6792632]
[1735637557227,20.0,193.49,193.35,17.6792632]
[1735637557554,0.96937208,193.48,193.35,17.6792632]
[1735637557735,0.96937208,193.48,193.36,24.153354]
[1735637558149,0.96937208,193.48,193.36,23.776884]
[1735637558346,0.96937679,193.47,193.36,23.776884]